[Event "Early-Titled-Tuesday-Blitz-November-28-2023"]
[Site "Chess.com"]
[Date "2023.11.28"]
[Round "8"]
[White "parintele_chess"]
[Black "millenium19"]
[Result "0-1"]
[WhiteElo "2205"]
[BlackElo "2480"]
[TimeControl "180+1"]
[EndTime "9:34:59 PST"]
[Termination "millenium19 won by resignation"]

1. d4 {[%clk 0:03:00.9]} 1... Nf6 {[%clk 0:02:20.9]} 2. Nf3 {[%clk 0:03:00.1]}
2... e6 {[%clk 0:02:20.6]} 3. Bf4 {[%clk 0:02:59.3]} 3... d5 {[%clk 0:02:19.9]}
4. e3 {[%clk 0:02:59.7]} 4... Bd6 {[%clk 0:02:20]} 5. Nbd2 {[%clk 0:03:00]} 5...
O-O {[%clk 0:02:19.6]} 6. Bg3 {[%clk 0:02:56.4]} 6... c5 {[%clk 0:02:19]} 7. c3
{[%clk 0:02:56.9]} 7... Qc7 {[%clk 0:02:17.9]} 8. Bxd6 {[%clk 0:02:52.9]} 8...
Qxd6 {[%clk 0:02:17.6]} 9. Ne5 {[%clk 0:02:53.2]} 9... Nc6 {[%clk 0:02:16.1]}
10. f4 {[%clk 0:02:53.4]} 10... Nd7 {[%clk 0:02:14.6]} 11. Bd3 {[%clk
0:02:51.4]} 11... f5 {[%clk 0:02:03.2]} 12. O-O {[%clk 0:02:47.3]} 12... cxd4
{[%clk 0:02:02.5]} 13. cxd4 {[%clk 0:02:44.7]} 13... Ncxe5 {[%clk 0:01:52]} 14.
fxe5 {[%clk 0:02:44.3]} 14... Qe7 {[%clk 0:01:51.2]} 15. Rc1 {[%clk 0:02:39.4]}
15... Qg5 {[%clk 0:01:48.2]} 16. Qe2 {[%clk 0:02:39.5]} 16... Rf7 {[%clk
0:01:22.8]} 17. Rf3 {[%clk 0:02:38]} 17... Nf8 {[%clk 0:01:18.9]} 18. Rg3 {[%clk
0:02:36.8]} 18... Qh6 {[%clk 0:01:16.6]} 19. Nf3 {[%clk 0:02:27.2]} 19... Bd7
{[%clk 0:00:54.2]} 20. Rh3 {[%clk 0:02:09.9]} 20... Qg6 {[%clk 0:00:51.1]} 21.
Rg3 {[%clk 0:02:01.8]} 21... Qh6 {[%clk 0:00:47.3]} 22. Rh3 {[%clk 0:01:34.9]}
22... Qg6 {[%clk 0:00:46.6]} 23. Rg3 {[%clk 0:01:24.3]} 23... Qh5 {[%clk
0:00:40.9]} 24. Rh3 {[%clk 0:01:16.1]} 24... Qg4 {[%clk 0:00:37.3]} 25. Rh4
{[%clk 0:01:05.1]} 25... Qg6 {[%clk 0:00:36.6]} 26. Rf1 {[%clk 0:01:04.5]} 26...
h6 {[%clk 0:00:31.5]} 27. Nd2 {[%clk 0:01:02.1]} 27... Nh7 {[%clk 0:00:30.3]}
28. Rf3 {[%clk 0:00:58.6]} 28... Ng5 {[%clk 0:00:30.5]} 29. Rg3 {[%clk 0:00:59]}
29... Rc8 {[%clk 0:00:30.3]} 30. Nf3 {[%clk 0:00:49.6]} 30... Rc1+ {[%clk
0:00:29.7]} 31. Kf2 {[%clk 0:00:49.9]} 31... Ba4 {[%clk 0:00:17.3]} 32. b3
{[%clk 0:00:42.8]} 32... Be8 {[%clk 0:00:17.2]} 33. Nxg5 {[%clk 0:00:40.4]}
33... hxg5 {[%clk 0:00:17.2]} 34. Rh5 {[%clk 0:00:32.7]} 34... g4 {[%clk
0:00:17.1]} 35. Rh4 {[%clk 0:00:29]} 35... Qg5 {[%clk 0:00:16.3]} 36. Qd2 {[%clk
0:00:25.1]} 36... Rh1 {[%clk 0:00:15]} 37. Qc3 {[%clk 0:00:18.3]} 37... Qxh4
{[%clk 0:00:14.2]} 38. Qc8 {[%clk 0:00:18.9]} 38... Rf8 {[%clk 0:00:14]} 39.
Qxe6+ {[%clk 0:00:19]} 39... Bf7 {[%clk 0:00:14.4]} 40. Qe7 {[%clk 0:00:18.1]}
40... Qxe7 {[%clk 0:00:13.5]} 0-1

[Event "Early-Titled-Tuesday-Blitz-November-28-2023"]
[Site "Chess.com"]
[Date "2023.11.28"]
[Round "8"]
[White "elohunter1999"]
[Black "kuli4ik"]
[Result "0-1"]
[WhiteElo "2718"]
[BlackElo "2877"]
[TimeControl "180+1"]
[EndTime "9:35:03 PST"]
[Termination "kuli4ik won on time"]

1. c4 {[%clk 0:03:00.9]} 1... b6 {[%clk 0:02:57]} 2. Nc3 {[%clk 0:02:53.8]} 2...
Bb7 {[%clk 0:02:56.4]} 3. Nf3 {[%clk 0:02:54.4]} 3... Bxf3 {[%clk 0:02:55.6]} 4.
exf3 {[%clk 0:02:53.2]} 4... c5 {[%clk 0:02:55.8]} 5. d4 {[%clk 0:02:51.3]} 5...
Nc6 {[%clk 0:02:48.4]} 6. d5 {[%clk 0:02:50.2]} 6... Nd4 {[%clk 0:02:48.2]} 7.
Bd3 {[%clk 0:02:46.1]} 7... g6 {[%clk 0:02:45.5]} 8. h4 {[%clk 0:02:43.1]} 8...
h5 {[%clk 0:02:42]} 9. Bg5 {[%clk 0:02:26.9]} 9... Bg7 {[%clk 0:02:37.7]} 10. d6
{[%clk 0:02:26]} 10... Nf6 {[%clk 0:02:30.2]} 11. O-O {[%clk 0:02:23]} 11...
exd6 {[%clk 0:02:18.1]} 12. Re1+ {[%clk 0:02:19.3]} 12... Ne6 {[%clk 0:02:17.5]}
13. f4 {[%clk 0:02:19.4]} 13... O-O {[%clk 0:02:16.7]} 14. f5 {[%clk 0:02:19.4]}
14... gxf5 {[%clk 0:01:20]} 15. Bxf5 {[%clk 0:02:14.1]} 15... Re8 {[%clk
0:01:17.7]} 16. Qxd6 {[%clk 0:01:57.9]} 16... Nd4 {[%clk 0:01:07.2]} 17. Bd3
{[%clk 0:01:42.6]} 17... Re6 {[%clk 0:01:03.8]} 18. Qf4 {[%clk 0:01:38.9]} 18...
Qb8 {[%clk 0:01:02.8]} 19. Qd2 {[%clk 0:01:25.3]} 19... Ng4 {[%clk 0:01:01.6]}
20. Bf4 {[%clk 0:01:22.6]} 20... Be5 {[%clk 0:00:59.8]} 21. Nd5 {[%clk
0:01:17.2]} 21... Bxf4 {[%clk 0:00:49.5]} 22. Nxf4 {[%clk 0:01:18.1]} 22... Qd6
{[%clk 0:00:41.6]} 23. Rxe6 {[%clk 0:00:55.8]} 23... fxe6 {[%clk 0:00:28.7]} 24.
f3 {[%clk 0:00:55.7]} 24... Rf8 {[%clk 0:00:28.1]} 25. fxg4 {[%clk 0:00:53.6]}
25... Rxf4 {[%clk 0:00:18.4]} 26. gxh5 {[%clk 0:00:48.9]} 26... Rg4 {[%clk
0:00:17.8]} 27. Rf1 {[%clk 0:00:47.3]} 27... Qg3 {[%clk 0:00:17.8]} 28. Qf2
{[%clk 0:00:23.7]} 28... Qxf2+ {[%clk 0:00:17.4]} 29. Rxf2 {[%clk 0:00:24.6]}
29... Rxh4 {[%clk 0:00:17.9]} 30. Bg6 {[%clk 0:00:23.4]} 30... Nc6 {[%clk
0:00:17.7]} 31. Rf7 {[%clk 0:00:15.7]} 31... Ne5 {[%clk 0:00:17.8]} 32. Re7
{[%clk 0:00:14.6]} 32... Rxc4 {[%clk 0:00:16.5]} 33. Bh7+ {[%clk 0:00:09.5]}
33... Kf8 {[%clk 0:00:16.4]} 34. h6 {[%clk 0:00:04]} 34... Kxe7 {[%clk
0:00:15.9]} 35. g3 {[%clk 0:00:03.2]} 35... Rg4 {[%clk 0:00:15.5]} 36. Bg6
{[%clk 0:00:01.6]} 36... Rxg3+ {[%clk 0:00:15]} 37. Kh2 {[%clk 0:00:01.5]} 37...
Rxg6 {[%clk 0:00:15.9]} 0-1

[Event "Early-Titled-Tuesday-Blitz-November-28-2023"]
[Site "Chess.com"]
[Date "2023.11.28"]
[Round "8"]
[White "Pendos666"]
[Black "MITerryble"]
[Result "0-1"]
[WhiteElo "2802"]
[BlackElo "2958"]
[TimeControl "180+1"]
[EndTime "9:35:05 PST"]
[Termination "MITerryble won by resignation"]

1. e4 {[%clk 0:02:49]} 1... e6 {[%clk 0:03:00.1]} 2. d4 {[%clk 0:02:48.9]} 2...
d5 {[%clk 0:03:00.7]} 3. Nd2 {[%clk 0:02:49.3]} 3... Be7 {[%clk 0:03:00.9]} 4.
Ngf3 {[%clk 0:02:39.2]} 4... Nf6 {[%clk 0:02:59.5]} 5. Bd3 {[%clk 0:02:37.7]}
5... c5 {[%clk 0:02:59.6]} 6. exd5 {[%clk 0:02:36.2]} 6... Qxd5 {[%clk
0:02:59.5]} 7. dxc5 {[%clk 0:02:35.7]} 7... Qxc5 {[%clk 0:03:00.4]} 8. Qe2
{[%clk 0:02:33.5]} 8... Nbd7 {[%clk 0:03:00.5]} 9. O-O {[%clk 0:02:30.3]} 9...
Qc7 {[%clk 0:02:59.4]} 10. Ne4 {[%clk 0:02:28.9]} 10... O-O {[%clk 0:02:59.2]}
11. Bg5 {[%clk 0:02:27.4]} 11... b6 {[%clk 0:02:56.2]} 12. Nxf6+ {[%clk
0:02:20.8]} 12... Nxf6 {[%clk 0:02:56]} 13. c4 {[%clk 0:02:18.2]} 13... Bb7
{[%clk 0:02:54.8]} 14. Rad1 {[%clk 0:02:17.6]} 14... Rac8 {[%clk 0:02:43.3]} 15.
Ne5 {[%clk 0:02:14.5]} 15... g6 {[%clk 0:02:06.5]} 16. Rfe1 {[%clk 0:02:07.7]}
16... Nh5 {[%clk 0:02:04.4]} 17. Bh6 {[%clk 0:02:01.3]} 17... Bf6 {[%clk
0:01:44.2]} 18. Nd7 {[%clk 0:01:43.3]} 18... Rfe8 {[%clk 0:01:19]} 19. Nxf6+
{[%clk 0:01:41.5]} 19... Nxf6 {[%clk 0:01:19.9]} 20. h3 {[%clk 0:01:37.4]} 20...
e5 {[%clk 0:01:10.9]} 21. Bg5 {[%clk 0:01:29.9]} 21... Qc6 {[%clk 0:00:59.7]}
22. f3 {[%clk 0:01:23.6]} 22... e4 {[%clk 0:01:00.2]} 23. fxe4 {[%clk
0:01:20.2]} 23... Nxe4 {[%clk 0:01:00.2]} 24. Bxe4 {[%clk 0:01:04.6]} 24... Rxe4
{[%clk 0:01:01.1]} 25. Qxe4 {[%clk 0:00:56.1]} 25... Qxe4 {[%clk 0:01:02]} 26.
Rxe4 {[%clk 0:00:56.2]} 26... Bxe4 {[%clk 0:01:02.9]} 27. b3 {[%clk 0:00:56]}
27... Kg7 {[%clk 0:00:53.5]} 28. Rd6 {[%clk 0:00:55.2]} 28... Bf5 {[%clk
0:00:44]} 29. Bf6+ {[%clk 0:00:53]} 29... Kh6 {[%clk 0:00:44.5]} 30. g4 {[%clk
0:00:53]} 30... Be6 {[%clk 0:00:44.9]} 31. a4 {[%clk 0:00:48.4]} 31... g5 {[%clk
0:00:42.2]} 32. Bd4 {[%clk 0:00:46.4]} 32... Kg6 {[%clk 0:00:40.5]} 33. Kg2
{[%clk 0:00:44.7]} 33... h5 {[%clk 0:00:40.5]} 34. Kg3 {[%clk 0:00:35.3]} 34...
Re8 {[%clk 0:00:40.8]} 35. c5 {[%clk 0:00:30.6]} 35... bxc5 {[%clk 0:00:38.9]}
36. Bxc5 {[%clk 0:00:30.8]} 36... Rc8 {[%clk 0:00:35.5]} 37. gxh5+ {[%clk
0:00:29.9]} 37... Kxh5 {[%clk 0:00:35.3]} 38. b4 {[%clk 0:00:29.2]} 38... a5
{[%clk 0:00:35.4]} 39. Rd4 {[%clk 0:00:22.3]} 39... axb4 {[%clk 0:00:35.6]} 40.
Bxb4 {[%clk 0:00:22.3]} 40... Rc1 {[%clk 0:00:28.5]} 41. a5 {[%clk 0:00:22.2]}
41... Rg1+ {[%clk 0:00:24]} 42. Kh2 {[%clk 0:00:22.1]} 42... Ra1 {[%clk
0:00:24.5]} 43. Bd2 {[%clk 0:00:19.2]} 43... Ra3 {[%clk 0:00:21.7]} 44. h4
{[%clk 0:00:19.4]} 44... g4 {[%clk 0:00:21.3]} 45. Rb4 {[%clk 0:00:17.3]} 45...
g3+ {[%clk 0:00:16.9]} 46. Kg2 {[%clk 0:00:17.3]} 46... Bd5+ {[%clk 0:00:17.1]}
47. Kh3 {[%clk 0:00:16]} 47... g2+ {[%clk 0:00:16.8]} 48. Kh2 {[%clk 0:00:16.5]}
48... Rh3+ {[%clk 0:00:16.4]} 49. Kg1 {[%clk 0:00:16.5]} 49... Rh1+ {[%clk
0:00:16.1]} 0-1

[Event "Early-Titled-Tuesday-Blitz-November-28-2023"]
[Site "Chess.com"]
[Date "2023.11.28"]
[Round "8"]
[White "Pastore1978"]
[Black "GMJustin"]
[Result "0-1"]
[WhiteElo "2425"]
[BlackElo "2305"]
[TimeControl "180+1"]
[EndTime "9:35:06 PST"]
[Termination "GMJustin won by checkmate"]

1. e4 {[%clk 0:03:00.9]} 1... e5 {[%clk 0:02:26.4]} 2. Nf3 {[%clk 0:03:00.7]}
2... Nc6 {[%clk 0:02:26.6]} 3. Nc3 {[%clk 0:03:01.3]} 3... Nf6 {[%clk 0:02:10]}
4. a3 {[%clk 0:03:01.6]} 4... h6 {[%clk 0:01:58.2]} 5. d4 {[%clk 0:03:00.7]}
5... exd4 {[%clk 0:01:57]} 6. Nxd4 {[%clk 0:03:01.6]} 6... Bc5 {[%clk
0:01:47.2]} 7. Nb3 {[%clk 0:02:51.4]} 7... Bb6 {[%clk 0:01:45.6]} 8. Qe2 {[%clk
0:02:51.9]} 8... d6 {[%clk 0:01:35.9]} 9. Be3 {[%clk 0:02:51.9]} 9... O-O {[%clk
0:01:33.2]} 10. f3 {[%clk 0:02:49.1]} 10... Re8 {[%clk 0:01:29.5]} 11. O-O-O
{[%clk 0:02:47.8]} 11... Be6 {[%clk 0:01:20.3]} 12. Bxb6 {[%clk 0:02:37.8]}
12... axb6 {[%clk 0:01:18.6]} 13. Qd2 {[%clk 0:02:35.6]} 13... Nd7 {[%clk
0:00:37]} 14. Nd4 {[%clk 0:02:27.8]} 14... Nxd4 {[%clk 0:00:31.5]} 15. Qxd4
{[%clk 0:02:28.7]} 15... Qf6 {[%clk 0:00:24]} 16. Qxf6 {[%clk 0:02:12.9]} 16...
Nxf6 {[%clk 0:00:24.1]} 17. Nb5 {[%clk 0:02:13.6]} 17... Re7 {[%clk 0:00:22]}
18. h4 {[%clk 0:01:55.5]} 18... d5 {[%clk 0:00:19.3]} 19. e5 {[%clk 0:01:46.9]}
19... Nh5 {[%clk 0:00:19.1]} 20. Rd4 {[%clk 0:01:27.9]} 20... Ng3 {[%clk
0:00:16]} 21. Rg1 {[%clk 0:01:25.7]} 21... Rc8 {[%clk 0:00:06.9]} 22. Rd2 {[%clk
0:01:12.3]} 22... Bd7 {[%clk 0:00:06.1]} 23. f4 {[%clk 0:00:57.7]} 23... Nxf1
{[%clk 0:00:05.2]} 24. Nc3 {[%clk 0:00:18.8]} 24... Nxd2 {[%clk 0:00:04.4]} 25.
Nxd5 {[%clk 0:00:17.4]} 25... Ree8 {[%clk 0:00:04.1]} 26. Kxd2 {[%clk
0:00:17.8]} 26... Bc6 {[%clk 0:00:04.3]} 27. Ne3 {[%clk 0:00:17.1]} 27... Rcd8+
{[%clk 0:00:04.6]} 28. Kc3 {[%clk 0:00:17.4]} 28... f6 {[%clk 0:00:04.9]} 29.
Ng4 {[%clk 0:00:13]} 29... h5 {[%clk 0:00:04.8]} 30. Ne3 {[%clk 0:00:07.5]}
30... fxe5 {[%clk 0:00:05.1]} 31. f5 {[%clk 0:00:08.3]} 31... e4 {[%clk
0:00:05.1]} 32. g4 {[%clk 0:00:08.8]} 32... Re5 {[%clk 0:00:05.1]} 33. g5 {[%clk
0:00:08.5]} 33... Rc5+ {[%clk 0:00:05.2]} 34. Kb3 {[%clk 0:00:08.3]} 34... Rd4
{[%clk 0:00:05.2]} 35. c3 {[%clk 0:00:07.8]} 35... Rd3 {[%clk 0:00:05.1]} 36.
Nc2 {[%clk 0:00:08.1]} 36... Bd5+ {[%clk 0:00:05.2]} 37. Kb4 {[%clk 0:00:06.8]}
37... Rc4+ {[%clk 0:00:05.3]} 38. Kb5 {[%clk 0:00:05.3]} 38... Rd2 {[%clk
0:00:05.5]} 39. Nd4 {[%clk 0:00:05]} 39... Rxb2+ {[%clk 0:00:05.6]} 40. Nb3
{[%clk 0:00:04.2]} 40... Rxb3# {[%clk 0:00:06.1]} 0-1

[Event "Early-Titled-Tuesday-Blitz-November-28-2023"]
[Site "Chess.com"]
[Date "2023.11.28"]
[Round "8"]
[White "zajka-molotok"]
[Black "Good_Knight_Kiss"]
[Result "1-0"]
[WhiteElo "2504"]
[BlackElo "2342"]
[TimeControl "180+1"]
[EndTime "9:35:09 PST"]
[Termination "zajka-molotok won by checkmate"]

1. g3 {[%clk 0:03:00.9]} 1... Nf6 {[%clk 0:02:58.2]} 2. Bg2 {[%clk 0:03:01.5]}
2... g6 {[%clk 0:02:56.7]} 3. e4 {[%clk 0:03:00]} 3... d6 {[%clk 0:02:52.1]} 4.
d4 {[%clk 0:02:59.5]} 4... Bg7 {[%clk 0:02:38.6]} 5. Nc3 {[%clk 0:02:53.3]} 5...
O-O {[%clk 0:02:35.2]} 6. Nge2 {[%clk 0:02:48.2]} 6... c5 {[%clk 0:02:32]} 7.
dxc5 {[%clk 0:02:47.7]} 7... dxc5 {[%clk 0:02:31.9]} 8. Qxd8 {[%clk 0:02:34.2]}
8... Rxd8 {[%clk 0:02:32.8]} 9. e5 {[%clk 0:02:32.4]} 9... Ng4 {[%clk
0:02:28.5]} 10. f4 {[%clk 0:02:32.4]} 10... Nc6 {[%clk 0:02:21.9]} 11. h3 {[%clk
0:02:31.4]} 11... Nh6 {[%clk 0:02:21.5]} 12. Bxc6 {[%clk 0:02:23.1]} 12... bxc6
{[%clk 0:02:20.2]} 13. Be3 {[%clk 0:02:21.9]} 13... f6 {[%clk 0:01:56.8]} 14.
exf6 {[%clk 0:02:15.3]} 14... Bxf6 {[%clk 0:01:53.3]} 15. g4 {[%clk 0:02:11.8]}
15... Bd4 {[%clk 0:01:09.8]} 16. Rd1 {[%clk 0:02:03.4]} 16... Ba6 {[%clk
0:00:50.3]} 17. Bxd4 {[%clk 0:01:56.2]} 17... Bxe2 {[%clk 0:00:40.4]} 18. Nxe2
{[%clk 0:01:53]} 18... cxd4 {[%clk 0:00:40.3]} 19. Rxd4 {[%clk 0:01:40.4]} 19...
Nf7 {[%clk 0:00:30.6]} 20. Kf2 {[%clk 0:01:33.8]} 20... e5 {[%clk 0:00:30.2]}
21. fxe5 {[%clk 0:01:24.1]} 21... Nxe5 {[%clk 0:00:29.7]} 22. Rhd1 {[%clk
0:01:24.6]} 22... Rf8+ {[%clk 0:00:23.4]} 23. Kg2 {[%clk 0:01:20.2]} 23... Rf6
{[%clk 0:00:20.3]} 24. Rf4 {[%clk 0:01:13.8]} 24... Raf8 {[%clk 0:00:16.8]} 25.
Rxf6 {[%clk 0:01:12.2]} 25... Rxf6 {[%clk 0:00:17.7]} 26. Rd8+ {[%clk
0:01:07.8]} 26... Kg7 {[%clk 0:00:14.7]} 27. Ra8 {[%clk 0:01:06.4]} 27... Rf7
{[%clk 0:00:14.3]} 28. Nd4 {[%clk 0:00:59.3]} 28... Rb7 {[%clk 0:00:06.7]} 29.
b3 {[%clk 0:00:56.6]} 29... Kf6 {[%clk 0:00:06.7]} 30. Rc8 {[%clk 0:00:47.7]}
30... Rb6 {[%clk 0:00:03.6]} 31. Rc7 {[%clk 0:00:42.7]} 31... h5 {[%clk
0:00:04]} 32. gxh5 {[%clk 0:00:41.6]} 32... gxh5 {[%clk 0:00:04.9]} 33. Rxa7
{[%clk 0:00:41.1]} 33... c5 {[%clk 0:00:05.4]} 34. Nf3 {[%clk 0:00:37.7]} 34...
c4 {[%clk 0:00:03.9]} 35. Nxe5 {[%clk 0:00:36.5]} 35... cxb3 {[%clk 0:00:01.6]}
36. axb3 {[%clk 0:00:33.2]} 36... Kxe5 {[%clk 0:00:01.7]} 37. Ra5+ {[%clk
0:00:32.7]} 37... Kd4 {[%clk 0:00:02.1]} 38. Rxh5 {[%clk 0:00:32.1]} 38... Rc6
{[%clk 0:00:01.5]} 39. Rh4+ {[%clk 0:00:32]} 39... Kc3 {[%clk 0:00:01.3]} 40.
Rc4+ {[%clk 0:00:31.8]} 40... Rxc4 {[%clk 0:00:01.3]} 41. bxc4 {[%clk
0:00:32.7]} 41... Kxc4 {[%clk 0:00:01.5]} 42. h4 {[%clk 0:00:31.2]} 42... Kc3
{[%clk 0:00:01.2]} 43. h5 {[%clk 0:00:31.4]} 43... Kxc2 {[%clk 0:00:01.8]} 44.
h6 {[%clk 0:00:32.1]} 44... Kd3 {[%clk 0:00:02.2]} 45. h7 {[%clk 0:00:32.7]}
45... Ke4 {[%clk 0:00:03.1]} 46. h8=Q {[%clk 0:00:33.1]} 46... Kf5 {[%clk
0:00:04]} 47. Qd4 {[%clk 0:00:32.2]} 47... Ke6 {[%clk 0:00:04.1]} 48. Qc5 {[%clk
0:00:32.3]} 48... Kd7 {[%clk 0:00:04.4]} 49. Qb6 {[%clk 0:00:32.1]} 49... Kc8
{[%clk 0:00:04.7]} 50. Qa7 {[%clk 0:00:31.8]} 50... Kd8 {[%clk 0:00:05.2]} 51.
Kf3 {[%clk 0:00:32]} 51... Kc8 {[%clk 0:00:05.4]} 52. Kf4 {[%clk 0:00:32.9]}
52... Kd8 {[%clk 0:00:06.2]} 53. Ke5 {[%clk 0:00:32.7]} 53... Ke8 {[%clk
0:00:07.1]} 54. Ke6 {[%clk 0:00:32.7]} 54... Kd8 {[%clk 0:00:08]} 55. Qd7#
{[%clk 0:00:32.7]} 1-0

[Event "Early-Titled-Tuesday-Blitz-November-28-2023"]
[Site "Chess.com"]
[Date "2023.11.28"]
[Round "8"]
[White "jk13"]
[Black "Kovalyov_Eduard"]
[Result "1-0"]
[WhiteElo "2625"]
[BlackElo "2466"]
[TimeControl "180+1"]
[EndTime "9:35:11 PST"]
[Termination "jk13 won by checkmate"]

1. e4 {[%clk 0:02:57.2]} 1... e5 {[%clk 0:03:00.2]} 2. Nf3 {[%clk 0:02:56]} 2...
Nc6 {[%clk 0:03:00.4]} 3. Bc4 {[%clk 0:02:56]} 3... Bc5 {[%clk 0:03:00]} 4. d3
{[%clk 0:02:56.1]} 4... Nf6 {[%clk 0:02:59.7]} 5. c3 {[%clk 0:02:57]} 5... d6
{[%clk 0:03:00]} 6. Bb3 {[%clk 0:02:57.6]} 6... a5 {[%clk 0:02:59.4]} 7. O-O
{[%clk 0:02:58]} 7... h6 {[%clk 0:02:59]} 8. h3 {[%clk 0:02:58.5]} 8... O-O
{[%clk 0:02:59]} 9. Re1 {[%clk 0:02:58.7]} 9... Re8 {[%clk 0:02:59.1]} 10. Nbd2
{[%clk 0:02:58.6]} 10... Be6 {[%clk 0:02:52.6]} 11. Bc2 {[%clk 0:02:58.2]} 11...
d5 {[%clk 0:02:47.6]} 12. Nh2 {[%clk 0:02:56.5]} 12... d4 {[%clk 0:02:34.8]} 13.
Qf3 {[%clk 0:02:54.7]} 13... b5 {[%clk 0:02:31.8]} 14. Ndf1 {[%clk 0:02:47.9]}
14... dxc3 {[%clk 0:02:29.4]} 15. bxc3 {[%clk 0:02:47.2]} 15... b4 {[%clk
0:02:30]} 16. Ba4 {[%clk 0:02:47.8]} 16... Bd7 {[%clk 0:02:26.1]} 17. Bxc6
{[%clk 0:02:37.8]} 17... Bxc6 {[%clk 0:02:25.9]} 18. Bb2 {[%clk 0:02:33]} 18...
Qd6 {[%clk 0:01:58.2]} 19. Ng3 {[%clk 0:02:28.7]} 19... bxc3 {[%clk 0:01:37.3]}
20. Bxc3 {[%clk 0:02:28.1]} 20... g6 {[%clk 0:01:37.8]} 21. Rac1 {[%clk
0:02:20.5]} 21... Bb5 {[%clk 0:01:33.3]} 22. Bd2 {[%clk 0:01:55.7]} 22... Kg7
{[%clk 0:01:24.4]} 23. Be3 {[%clk 0:01:49.9]} 23... Bb6 {[%clk 0:01:19.8]} 24.
Red1 {[%clk 0:01:29.5]} 24... Rad8 {[%clk 0:01:16.3]} 25. Ng4 {[%clk 0:01:21.5]}
25... Nxg4 {[%clk 0:01:11.5]} 26. Qxg4 {[%clk 0:01:16.4]} 26... Bd7 {[%clk
0:01:08.8]} 27. Qf3 {[%clk 0:01:03.9]} 27... Be6 {[%clk 0:01:05.3]} 28. Rd2
{[%clk 0:00:59.5]} 28... Qa3 {[%clk 0:00:59.8]} 29. Rcd1 {[%clk 0:00:52.9]}
29... Bd4 {[%clk 0:00:49.9]} 30. h4 {[%clk 0:00:47.4]} 30... Bc3 {[%clk
0:00:37.4]} 31. Rc2 {[%clk 0:00:42.3]} 31... Bxa2 {[%clk 0:00:33.5]} 32. Rdc1
{[%clk 0:00:29]} 32... Rxd3 {[%clk 0:00:30]} 33. Bxh6+ {[%clk 0:00:27.3]} 33...
Kxh6 {[%clk 0:00:26.6]} 34. Qxd3 {[%clk 0:00:28.2]} 34... Bb2 {[%clk 0:00:08.6]}
35. Qd2+ {[%clk 0:00:27.7]} 35... Kg7 {[%clk 0:00:06.9]} 36. Rxb2 {[%clk
0:00:28.6]} 36... Be6 {[%clk 0:00:06.1]} 37. Rxc7 {[%clk 0:00:25.7]} 37... a4
{[%clk 0:00:04.8]} 38. Rbb7 {[%clk 0:00:21.8]} 38... Bb3 {[%clk 0:00:04.7]} 39.
Ra7 {[%clk 0:00:20.9]} 39... Qa1+ {[%clk 0:00:04.9]} 40. Kh2 {[%clk 0:00:21]}
40... Rb8 {[%clk 0:00:04.7]} 41. h5 {[%clk 0:00:18.6]} 41... Rh8 {[%clk
0:00:04.7]} 42. Qg5 {[%clk 0:00:17.6]} 42... Qd4 {[%clk 0:00:03.9]} 43. Qxg6+
{[%clk 0:00:17.7]} 43... Kf8 {[%clk 0:00:03.3]} 44. Rxf7+ {[%clk 0:00:18.4]}
44... Bxf7 {[%clk 0:00:02.9]} 45. Qxf7# {[%clk 0:00:19.3]} 1-0

[Event "Early-Titled-Tuesday-Blitz-November-28-2023"]
[Site "Chess.com"]
[Date "2023.11.28"]
[Round "8"]
[White "Leonid_Starozhilov"]
[Black "Nitzan_Steinberg"]
[Result "1-0"]
[WhiteElo "2754"]
[BlackElo "2885"]
[TimeControl "180+1"]
[EndTime "9:35:12 PST"]
[Termination "Leonid_Starozhilov won by resignation"]

1. e4 {[%clk 0:03:00.9]} 1... c5 {[%clk 0:02:46.8]} 2. Nf3 {[%clk 0:03:00.9]}
2... e6 {[%clk 0:02:46.6]} 3. d4 {[%clk 0:03:00.3]} 3... cxd4 {[%clk 0:02:47.5]}
4. Nxd4 {[%clk 0:03:01.1]} 4... Nc6 {[%clk 0:02:47.7]} 5. Nxc6 {[%clk
0:02:59.7]} 5... bxc6 {[%clk 0:02:48]} 6. Bd3 {[%clk 0:03:00.6]} 6... Nf6 {[%clk
0:02:46]} 7. O-O {[%clk 0:03:00]} 7... d5 {[%clk 0:02:46.5]} 8. Nd2 {[%clk
0:03:00.4]} 8... Be7 {[%clk 0:02:45.5]} 9. b3 {[%clk 0:03:00.4]} 9... a5 {[%clk
0:02:45.1]} 10. a4 {[%clk 0:02:52.5]} 10... O-O {[%clk 0:02:43.9]} 11. Qe2
{[%clk 0:02:52]} 11... Bb7 {[%clk 0:02:37.6]} 12. Bb2 {[%clk 0:02:49.9]} 12...
c5 {[%clk 0:02:25.2]} 13. Rad1 {[%clk 0:02:47.7]} 13... Qb6 {[%clk 0:02:18.3]}
14. Qf3 {[%clk 0:02:30.9]} 14... Rac8 {[%clk 0:02:01.1]} 15. exd5 {[%clk
0:02:20.6]} 15... exd5 {[%clk 0:01:41.9]} 16. Rfe1 {[%clk 0:02:16.9]} 16... Rfe8
{[%clk 0:01:38.5]} 17. Bb5 {[%clk 0:01:50.8]} 17... d4 {[%clk 0:01:30.3]} 18.
Qh3 {[%clk 0:01:25.6]} 18... Nd5 {[%clk 0:01:23.8]} 19. Bxe8 {[%clk 0:01:20.1]}
19... Rxe8 {[%clk 0:01:24.7]} 20. Nc4 {[%clk 0:01:19.1]} 20... Qd8 {[%clk
0:00:58]} 21. Bc1 {[%clk 0:00:57.8]} 21... h6 {[%clk 0:00:50]} 22. Bd2 {[%clk
0:00:56.2]} 22... Bg5 {[%clk 0:00:29]} 23. Bxg5 {[%clk 0:00:16.6]} 23... Rxe1+
{[%clk 0:00:28]} 24. Rxe1 {[%clk 0:00:17.5]} 24... Qxg5 {[%clk 0:00:27.6]} 25.
Qg3 {[%clk 0:00:18]} 25... Qf5 {[%clk 0:00:15.4]} 26. Qb8+ {[%clk 0:00:14.8]}
26... Bc8 {[%clk 0:00:05]} 27. Re8+ {[%clk 0:00:15]} 27... Kh7 {[%clk
0:00:05.1]} 28. Qxc8 {[%clk 0:00:12.6]} 28... Qxc2 {[%clk 0:00:04.9]} 29. Rh8+
{[%clk 0:00:13.2]} 29... Kg6 {[%clk 0:00:05.1]} 30. Qg4+ {[%clk 0:00:11.8]}
30... Kf6 {[%clk 0:00:04.6]} 31. Qf3+ {[%clk 0:00:09.8]} 31... Ke7 {[%clk
0:00:04]} 32. h4 {[%clk 0:00:05.3]} 32... Nc3 {[%clk 0:00:02.1]} 33. Rc8 {[%clk
0:00:02.9]} 33... Qd1+ {[%clk 0:00:01.2]} 34. Qxd1 {[%clk 0:00:02.8]} 34... Nxd1
{[%clk 0:00:02.1]} 35. Rxc5 {[%clk 0:00:03]} 35... Nc3 {[%clk 0:00:02.8]} 36.
Rc7+ {[%clk 0:00:03.1]} 36... Kd8 {[%clk 0:00:02.8]} 37. Ra7 {[%clk 0:00:04]}
37... d3 {[%clk 0:00:03.3]} 38. Rxf7 {[%clk 0:00:04.2]} 38... Ne4 {[%clk
0:00:02]} 39. Kf1 {[%clk 0:00:04]} 39... Nd6 {[%clk 0:00:02]} 40. Nxd6 {[%clk
0:00:03.6]} 40... d2 {[%clk 0:00:02.7]} 41. Ke2 {[%clk 0:00:04.3]} 1-0